Cogmind - Beta 12 @@@ ROGUE MODE // 2024.01.28 @ 08:20:08 Player: BVrutally Odd Result: Destroyed by S-10 Pest with Light Assault Rifle Performance ------------- Evolutions (0) 0 Regions Visited (1) 200 Robots Destroyed (13) 65 Value Destroyed (264) 264 Prototype IDs (0) 0 Alien Tech Used (0) 0 Bonus (0) 0 TOTAL SCORE: 529 Bonus ------- None Cogmind --------- Core Integrity 0/250 Matter 280/300 Energy 238/250 System Corruption 2% Temperature Hot (263) Movement Walking (260) Ox2 Location -10/Materials Parts ------- > --- POWER (1) -------- Ion Engine (fused) > --- PROPULSION (2) --- Light Treads Aluminum Leg > --- UTILITY (2) ------ Large Storage Unit Improved Targeting Computer > --- WEAPON (2) ------- Medium Laser Medium Laser > --- INVENTORY (15) --- Aluminum Leg Structural Scanner Improved Targeting Computer Improved Targeting Computer Medium Laser Assault Rifle Grenade Launcher Peak State ------------ > --- POWER ------------ Ion Engine > --- PROPULSION ------- Aluminum Leg Aluminum Leg > --- UTILITY ---------- Small Storage Unit Improved Targeting Computer > --- WEAPON ----------- Medium Laser Medium Laser > --- INVENTORY -------- Light Treads Light Treads Compact Wheel Improved Targeting Computer Improved Targeting Computer Medium Laser Medium Laser Assault Rifle [Rating: 9] Favorites ----------- Power Ion Engine Engine Ion Engine Propulsion Aluminum Leg Treads Light Treads Leg Aluminum Leg Wheel Compact Wheel Utility Improved Targeting Computer Storage Small Storage Unit Processor Improved Targeting Computer Weapon Medium Laser Energy Gun Medium Laser Build | -11 -10 ------- Run | Jun Mat Slots Evolved . | . . Power . | . . Propulsion . | . . Utility . | . . Weapon . | . . Parts Attached 15 | 6 9 Power 1 | 1 . Engine 1 | 1 . Core . | . . Reactor . | . . Propulsion 6 | 2 4 Treads 2 | . 2 Leg 3 | 2 1 Wheel 1 | . 1 Hover . | . . Flight . | . . Utility 3 | 1 2 Device . | . . Storage 2 | 1 1 Processor 1 | . 1 Hackware . | . . Protection . | . . Artifact . | . . Weapon 5 | 2 3 Energy Gun 5 | 2 3 Energy Cannon . | . . Ballistic Gun . | . . Ballistic Cannon . | . . Launcher . | . . Special Weapon . | . . Impact Weapon . | . . Slashing Weapon . | . . Piercing Weapon . | . . Special Melee Weapon . | . . Unidentified Prototypes . | . . Parts Lost 3 | . 3 Power . | . . Propulsion 2 | . 2 Utility . | . . Weapon 1 | . 1 Highest Loss Streak 3 | . 3 To Critical Strikes . | . . Average Slot Usage (%) 95 | . 95 Engine 14 | . 14 Treads 6 | . 6 Leg 14 | . 14 Wheel 6 | . 6 Storage 14 | . 14 Processor 10 | . 10 Energy Gun 27 | . 27 Naked Turns . | . . Heaviest Build 29 | 14 29 Greatest Support 20 | 20 20 Greatest Overweight (x) 2 | . 2 Average Overweight (x) . | . . Largest Inventory Capacity 15 | 8 15 Average Capacity 10 | 6 11 Most Carried 10 | 4 10 Average Carried 6 | 2 7 Final Capacity 15 | 8 15 Final Carried 7 | 4 7 Class Distribution -------------------- 100% | Mutant Dominant Class ---------------- Mutant | -10/Materials Resources | -11 -10 ----------- Run | Jun Mat Matter Collected 327 | 260 67 Remotely . | . . Salvage Created 416 | . 416 Parts 20 | . 20 Haulers Intercepted 2 | . 2 Recyclers Shooed . | . . Parts Field Recycled . | . . Retrieved Matter . | . . Parts Self-Destructed . | . . Prevented . | . . Kills | -11 -10 ------- Run | Jun Mat Combat Hostiles Destroyed 10 | . 10 Guns 9 | . 9 Classes Destroyed 4 | . 4 Hauler 2 | . 2 Watcher 1 | . 1 Swarmer 4 | . 4 Grunt 6 | . 6 Best Kill Streak 3 | . 3 Combat Bots Only 3 | . 3 Max Kills in Single Turn 1 | . 1 Gunslinging . | . . Exploded . | . . Melee . | . . Uniques/NPCs Destroyed . | . . Combat | -11 -10 -------- Run | Jun Mat Damage Taken 706 | . 706 Core 256 | . 256 Absorbed by Shields . | . . Core Remaining (%) 100 | 100 . Volleys Fired 53 | . 53 Largest 2 | . 2 Hottest 100 | . 100 Shots Fired 100 | . 100 Gun 100 | . 100 Cannon . | . . Launcher . | . . Special . | . . Kinetic . | . . Thermal 100 | . 100 Explosive . | . . Electromagnetic . | . . Robot Hit Streak 9 | . 9 Robot Miss Streak 9 | . 9 Penetration Max . | . . Secondary Targets 1 | . 1 Max Gunslinging Chain 1 | . 1 Shots Hit Robots 58 | . 58 Core Hits 21 | . 21 Critical Kills . | . . Critical Parts Destroyed . | . . Critical Strikes 7 | . 7 Burn 7 | . 7 Melee Attacks . | . . Impact . | . . Slashing . | . . Piercing . | . . Sneak Attacks . | . . Combat Hostiles . | . . Follow-up Attacks . | . . Damage Inflicted 722 | . 722 Guns 722 | . 722 Cannons . | . . Explosions . | . . Melee . | . . Ramming . | . . Kinetic . | . . Thermal 722 | . 722 Explosive . | . . Electromagnetic . | . . Impact . | . . Slashing . | . . Piercing . | . . Highest Corruption 2 | . 2 Average Corruption 2 | . 2 Corruption Purged . | . . Corruption Blocked . | . . Effects 4 | . 4 Message Errors 1 | . 1 Matter Fused 1 | . 1 Parts Fused 1 | . 1 Misfires 1 | . 1 Overload Shots . | . . Overflow Damage . | . . Projectiles . | . . Explosions . | . . Melee . | . . Knockbacks . | . . Impact . | . . Kinetic . | . . Secondary . | . . Self-Inflicted Damage . | . . Shots . | . . Rammed . | . . Targets Rammed . | . . Kicked . | . . Crushed . | . . Highest Temperature 309 | . 309 Average Temperature 117 | . 117 Received Heat Transfer 168 | . 168 Effects 3 | . 3 Energy Bleed 1 | . 1 Interference 2 | . 2 Siege Activations . | . . Robots Corrupted . | . . Combat Hostiles . | . . Parts Fried . | . . Impact Corruptions . | . . Robots Melted 1 | . 1 Combat Hostiles 1 | . 1 Parts Melted 13 | . 13 Heat Transferred 2664 | . 2664 Parts Sabotaged . | . . Parts Stolen . | . . Parts Stripped . | . . Power Chain Reactions . | . . Missiles Intercepted . | . . Alert | -11 -10 ------- Run | Jun Mat Peak Influence 275 | . 275 Initial . | . . Average 127 | . 142 Maximum Alert Level 1 | . 1 Low Security (%) 73 | 100 70 Level 1 26 | . 29 Level 2 . | . . Level 3 . | . . Level 4 . | . . Level 5 . | . . High Security . | . . Max Security . | . . Squads Dispatched 3 | . 3 Investigation 1 | . 1 Extermination . | . . Reinforcement 2 | . 2 Assault . | . . Garrison . | . . Intercept . | . . Searches Triggered . | . . Construction Impeded . | . . Haulers Reinforced . | . . Active Scanning Responses . | . . Cargo Convoy Interrupts . | . . Stealth | -11 -10 --------- Run | Jun Mat Distress Signals 2 | . 2 Communications Jammed . | . . Distress Signals . | . . Times Spotted 18 | . 18 Peak Tracking Total 5 | . 5 Tactical Retreats 1 | . 1 Traps | -11 -10 ------- Run | Jun Mat Traps Triggered 2 | . 2 Indirectly . | . . Trap Hack Attempts . | . . Triggered . | . . Disarmed . | . . Reprogrammed . | . . Reused . | . . Traps Extracted . | . . Installed . | . . Triggered . | . . Machines | -11 -10 ---------- Run | Jun Mat Machines Disabled . | . . Max in Single Turn . | . . Machines Repaired . | . . Machines Sabotaged . | . . Overloaded Fab Kills . | . . Hacking | -11 -10 --------- Run | Jun Mat Machines Accessed 3 | . 3 Terminals 3 | . 3 Fabricators . | . . Repair Stations . | . . Recycling Units . | . . Scanalyzers . | . . Garrison Access . | . . Total Hacks 11 | . 11 Successful 2 | . 2 Failed 9 | . 9 Catastrophic 1 | . 1 Database Lockouts . | . . Manual 10 | . 10 Terminals 11 | . 11 Fabricators . | . . Repair Stations . | . . Recycling Units . | . . Scanalyzers . | . . Garrison Access . | . . Terminal Hacks 2 | . 2 Branch Access Points 1 | . 1 Locate Traps 1 | . 1 Fabricator Hacks . | . . Repair Station Hacks . | . . Recycling Unit Hacks . | . . Scanalyzer . | . . Garrison Access Hacks . | . . Unauthorized Hacks . | . . Terminals . | . . Fabricators . | . . Repair Stations . | . . Recycling Units . | . . Scanalyzers . | . . Garrison Access . | . . Data Cores Recovered . | . . Used . | . . Hacking Detections 3 | . 3 Full Trace Events . | . . Feedback Events . | . . Feedback Blocked . | . . Robot Schematics Acquired . | . . Robots Built . | . . Authchips . | . . Time . | . . Total Robot Build Rating . | . . Part Schematics Acquired . | . . Parts Built . | . . Authchips . | . . Time . | . . Total Part Build Rating . | . . Parts Repaired . | . . Time . | . . Parts Recycled . | . . Recycled Matter . | . . Retrieved Matter . | . . Retrieved Components . | . . Parts Scanalyzed . | . . Part Schematics Acquired . | . . Parts Damaged . | . . Bothacking | -11 -10 ------------ Run | Jun Mat Used RIF Installer . | . . Robots Hacked . | . . Non-combat . | . . Combat . | . . Robot Hacks Applied . | . . Relay Couplers Released . | . . Fabnet Peak Effective % . | . . Robots Rewired . | . . Allies Hacked . | . . Hacks Repelled . | . . Allies | -11 -10 -------- Run | Jun Mat Total Allies . | . . Largest Group . | . . Highest-Rated Group . | . . Highest-Rated Ally . | . . Total Orders . | . . Ally Attacks . | . . Total Damage . | . . Kills . | . . Allies Corrupted . | . . Allies Melted . | . . Intel | -11 -10 ------- Run | Jun Mat Robot Analysis Total . | . . Derelict Logs Recovered . | . . Drone Launches . | . . Drone Recoveries . | . . Exploration | -11 -10 ------------- Run | Jun Mat Turns Passed 604 | 63 541 Spaces Moved 278 | 40 238 Core 5 | 5 . Treads . | . . Legs 168 | 35 133 Wheels 105 | . 105 Hover . | . . Flight . | . . Fastest Speed 50 | 50 115 Average Speed 117 | 111 118 Slowest Speed 260 | 120 260 Overloaded Moves . | . . Propulsion Burnouts . | . . Robots Hopped . | . . Cave-ins Triggered . | . . Exploration Rate (%) 28 | 3 53 Regions Visited 1 Branch Regions . Pre-discovered Areas . | . . Known Exits Taken . | . . Unknown Exits Taken 1 | 1 . Scrap Searched . | . . Spaces Dug . | . . Terrain Destroyed . | . . Melee . | . . Projectile . | . . AOE . | . . Terrain Rammed . | . . Walls Destroyed . | . . Machines Disabled . | . . Actions | -11 -10 --------- Run | Jun Mat Total 453 | 55 398 Wait 99 | 6 93 Move 277 | 39 238 Hop . | . . Pick Up 8 | 4 4 Fast Attach 7 | 6 1 Attach 3 | . 3 Detach . | . . Swap 5 | . 5 Drop 1 | . 1 Fire 53 | . 53 Melee . | . . Ram . | . . Kick . | . . Crush . | . . Escape Stasis . | . . Rewire . | . . Trap . | . . Miscellaneous . | . . Route ------- -11/Junkyard -10/Materials (discovered 4 exits: [*Mat x2] / *Min x2) History --------- Turn | Location | Event 12 | -11/Junkyard | Discovered new exit (range 15) 64 | -11/Junkyard | Entered Materials 174 | -10/Materials | Discovered new exit (range 11) 312 | -10/Materials | Build established: Mutant 330 | -10/Materials | Discovered new exit (range 13) 433 | -10/Materials | Core integrity fell below 50% 545 | -10/Materials | Discovered new exit (range 11) 562 | -10/Materials | Identified exit to Mines 591 | -10/Materials | Core integrity fell below 20% 605 | -10/Materials | Destroyed by S-10 Pest with Light Assault Rifle Last Messages --------------- 00555_ K-01 Serf collects debris. 00562_ Connecting with Terminal... >>Access(Branch) Found 2 branch access points: (36,37) Mines (51,31) Mines Map updated. 00563_ K-01 Serf collects debris. 00566_ System corrupted: Ion Engine fused. 00566_ K-01 Serf cleans the Nuclear Reactor. 00570_ K-01 Serf collects debris. 00578_ Lgt. Treads destroyed. 00579_ S-10 Pest destroyed. 00579_ K-01 Serf collects debris. 00589_ Destroyed Flight Unit. 00589_ Med. Laser destroyed. 00596_ Com. Wheel destroyed. 00597_ K-01 Serf cleans the Terminal. 00600_ R-06 Scavenger collects Flight Unit. 00601_ K-01 Serf cleans the Terminal. Map ----- +----------------------------------------------------+ | ????????????????????????????????????????????????# | | ????????????????????????????????????????????????# | | ????????????????????????????????????????????????# | | ????????????????????????????????????? ########## | | ???????????????????????????????????? | | ???????????????????????????????????? | | ???????????????????????????????????? | | ????????????????????????????????????? ##+######## | | ????????????????????????????????????????????????# | | ????????????????????????????????????????????????# | | ????????????????????????????????????????????????# | | ????????????????????????????????????????????????# | | ????????????????????????????????????????????????# | | ????????????????????????????????????????????????# | | ????????????????????????????????????????????????# | | ????????????????????????????????????????????????? | | ??????????????????????######????????????????????? | | ?????????????????????? #????????>???????????? | | ???????#?????????????? #???????????????###### | | ???????# ????????????? #??????????????? ! | | ???????# ????????????? ???????? ?????? | | ???????# ?#####??????? ???????## #???????""" | | ???????# ##"T"#########+##???? # #??????"""" | | ???????# !k|== [### + #?????""""" | | ???????+ !||%= s%s / # #???? """"" | | ???????# !||= @### # #???# """"" | | ???????### = T#???????# #???# | | ?????????# """ ##???????# ########### | | ?????????# """ ########## ^ ^ | | ???????### """ ## # ^ ^ | | ???????# ## # ^ | | ?####### + # ^ """ """ | | # # %## """ # """ """ | | # """ + ##########+##+## """ # """ """ | | # """ # #?????# !% # """ + | | # """ # #?????# =[*| # # | | # ?# #?????# % # """ #####"T"## | | #= ?# #?????# # """ #???###### | | #####??# #?????# # """ #?????#### """ | | ???????# #?????# # #????##! "Y" | | ???????# ?????# ! #########????#! | | ???????# ##????# #????????????#! ! | | ???????# < #?????# #????????????#! | | ???????# #?????##########????????????#! | | ???????#####???????????????????????????##! ###### | | ????????????????????????????????????????####????? | | ????????????????????????????????????????????????? | | ????????????????????????????????????????????????? | | ????????????????????????????????????????????????? | | ????????????????????????????????????????????????? | +----------------------------------------------------+ Best States ------------- Heat Dissipation 25 Energy Generation 10 Energy Capacity 250 Matter Stores 300 Matter Capacity 300 Sight Range 16 Terrain Scan Density 10 Evasion (%) 55 Targeting Accuracy 6 Recoil Reduction 1 Item Schematics ----------------- None Robot Schematics ------------------ None Fabricated ------------ Nothing Alien Tech Used ----------------- None Achievements -------------- None Challenges ------------ None Game ------ Seed ChipPortableLance Manual? 0 Play Time 00:06:56 Cumulative 95.6 hours Start 2024.01.28 @ 07:58:26 End 2024.01.28 @ 08:20:08 Sessions 1 Manual Loads 0 Difficulty Rogue Special Mode None Game No. 47 Rogue 10 Adventurer 16 Explorer 21 Win Type - Total 17 Types 12/4/0/0/0/0/0/1/0 Lore% 66 Gallery% 71 Achievement% 66 Wizard Run 0 Options --------- ASCII 0 Keyboard 0 Movement Mouse Keybinds 0 Fullscreen 1 Font 24/Terminus Map View 76x50 Tactical HUD 1 Map Filters NONE Filters NONE Steam 1 RUN: 049cacc5-e4f8-490f-b1d0-9d749a673443